[Event "Netanya Open 2019"]
[Site "Netanya"]
[Date "2019.07.02"]
[Round "9.27"]
[White "Tifferet, Shaked"]
[Black "Itzhaky, Shmuel"]
[Result "1/2-1/2"]
[ECO "E04"]
[WhiteElo "2249"]
[BlackElo "2130"]
[Annotator "NA"]
[PlyCount "113"]
[EventDate "2019.06.23"]
[EventType "swiss"]
[EventCountry "ISR"]
[SourceTitle "playchess.com"]
[Source "ChessBase"]
[SourceQuality "1"]
[TimeControl "40/5400+30:1800+30"]

1. d4 {[%emt 0:00:00]} d5 {[%emt 0:00:21]} 2. c4 {[%emt 0:00:00]} e6 {[%emt 0:00:08]} 3. g3 {[%emt 0:00:00]} dxc4 {[%emt 0:06:52]} 4. Bg2 {[%emt 0:00:46]} c5 {[%emt 0:01:45]} 5. Nf3 {[%emt 0:01:17]} Nc6 {[%emt 0:00:42]} 6. O-O {[%emt 0:02:06]} Nf6 {[%emt 0:01:43]} 7. Qa4 {[%emt 0:00:25]} Bd7 {[%emt 0:04:26]} 8. Qxc4 {[%emt 0:00:06]} cxd4 {[%emt 0:12:31]} 9. Nxd4 {[%emt 0:00:32]} Rc8 {[%emt 0:04:02]} 10. Nc3 {[%emt 0:00:30]} Nxd4 {[%emt 0:05:27]} 11. Qxd4 {[%emt 0:04:53]} Bc5 {[%emt 0:00:16]} 12. Qd3 {[%emt 0:06:17]} Bc6 {[%emt 0:02:32]} 13. Qxd8+ {[%emt 0:00:20]} Kxd8 {[%emt 0:00:25]} 14. Bg5 {[%emt 0:20:03]} h6 {[%emt 0:02:09]} 15. Bxf6+ {[%emt 0:02:22]} gxf6 {[%emt 0:00:04]} 16. Ne4 {[%emt 0:15:47]} Bxe4 {[%emt 0:02:48]} 17. Bxe4 {[%emt 0:01:57]} f5 {[%emt 0:02:16]} 18. Rfd1+ {[%emt 0:10:50]} Ke7 {[%emt 0:00:11]} 19. Bxb7 {[%emt 0:00:22]} Rb8 {[%emt 0:00:14]} 20. Bc6 {[%emt 0:00:08]} Rxb2 {[%emt 0:00:17]} 21. Rd7+ {[%emt 0:00:04]} Kf6 {[%emt 0:00:19]} 22. Bf3 {[%emt 0:00:05]} Re8 {[%emt 0:08:05]} 23. a4 {[%emt 0:09:21]} Re7 {[%emt 0:12:46]} 24. Rd8 {[%emt 0:02:19]} Bb6 {[%emt 0:01:25]} 25. Rg8 {[%emt 0:00:17]} Rd7 {[%emt 0:01:48]} 26. Kg2 {[%emt 0:01:38]} Rd8 {[%emt 0:01:05]} 27. Rxd8 {[%emt 0:00:27]} Bxd8 {[%emt 0:00:02]} 28. Rd1 {[%emt 0:00:40]} Bb6 {[%emt 0:00:13]} 29. Bh5 {[%emt 0:05:52]} Rc2 {[%emt 0:02:12]} 30. f4 {[%emt 0:00:47]} Ke7 {[%emt 0:02:02]} 31. Ra1 {[%emt 0:01:42]} Ba5 {[%emt 0:01:45]} 32. Rb1 {[%emt 0:00:56]} Bb6 {[%emt 0:01:33]} 33. Rb4 {[%emt 0:00:19]} Rd2 {[%emt 0:00:57]} 34. Rb3 {[%emt 0:05:58]} Ra2 {[%emt 0:01:13]} 35. Rb4 {[%emt 0:00:05]} Rd2 {[%emt 0:00:21]} 36. Rc4 {[%emt 0:00:05]} Rd4 {[%emt 0:00:27]} 37. Rc8 {[%emt 0:00:08]} Rd8 {[%emt 0:00:27]} 38. Rc2 {[%emt 0:00:39]} Rd4 {[%emt 0:00:23]} 39. Ra2 {[%emt 0:00:04]} Ba5 {[%emt 0:00:08]} 40. Kh3 {[%emt 0:00:57]} Rc4 {[%emt 0:01:37]} 41. Bf3 {[%emt 0:33:14]} Kf6 {[%emt 0:31:34]} 42. Bb7 {[%emt 0:01:35]} Kg6 {[%emt 0:03:10]} 43. Ba6 {[%emt 0:00:21]} Rd4 {[%emt 0:01:11]} 44. Bb5 {[%emt 0:00:26]} Rd2 {[%emt 0:08:13]} 45. Ra1 {[%emt 0:00:37]} Rc2 {[%emt 0:00:41]} 46. Rd1 {[%emt 0:00:34]} Rd2 {[%emt 0:00:30]} 47. Rc1 {[%emt 0:00:06]} Bb6 {[%emt 0:00:17]} 48. Bd3 {[%emt 0:00:36]} Ra2 {[%emt 0:00:29]} 49. Rc4 {[%emt 0:00:31]} Kf6 {[%emt 0:02:50]} 50. Bc2 {[%emt 0:00:13]} Kg7 {[%emt 0:01:25]} 51. Rc8 {[%emt 0:00:17]} Kf6 {[%emt 0:01:19]} 52. Rc4 {[%emt 0:03:40]} Kg7 {[%emt 0:00:50]} 53. Bd3 {[%emt 0:00:14]} Kf6 {[%emt 0:01:45]} 54. Rb4 {[%emt 0:00:04]} Bc5 {[%emt 0:00:55]} 55. Rc4 {[%emt 0:01:23]} Bb6 {[%emt 0:03:07]} 56. Kg2 {[%emt 0:00:07]} Ra1 {[%emt 0:00:56]} 57. Kh3 {[%emt 0:00:00]} 1/2-1/2

[Event "Netanya Open 2019"]
[Site "Netanya"]
[Date "2019.07.02"]
[Round "9.28"]
[White "Nissim, Yonatan"]
[Black "Alexikov, Alexander"]
[Result "0-1"]
[ECO "E82"]
[WhiteElo "2082"]
[BlackElo "2234"]
[Annotator "NA"]
[PlyCount "70"]
[EventDate "2019.06.23"]
[EventType "swiss"]
[EventCountry "ISR"]
[SourceTitle "playchess.com"]
[Source "ChessBase"]
[SourceQuality "1"]
[TimeControl "40/5400+30:1800+30"]

1. d4 {[%emt 0:00:00]} Nf6 {[%emt 0:00:00]} 2. c4 {[%emt 0:00:00]} g6 {[%emt 0:00:00]} 3. f3 {[%emt 0:00:00]} Bg7 {[%emt 0:01:57]} 4. e4 {[%emt 0:00:27]} d6 {[%emt 0:00:23]} 5. Nc3 {[%emt 0:00:15]} c5 {[%emt 0:08:20]} 6. Nge2 {[%emt 0:01:22]} O-O {[%emt 0:02:39]} 7. Be3 {[%emt 0:00:42]} b6 {[%emt 0:00:27]} 8. d5 {[%emt 0:03:45]} a6 {[%emt 0:10:56]} 9. a4 {[%emt 0:02:26]} Nbd7 {[%emt 0:03:26]} 10. Nc1 {[%emt 0:04:08]} Qc7 {[%emt 0:01:41]} 11. Be2 {[%emt 0:01:31]} e6 {[%emt 0:00:36]} 12. O-O {[%emt 0:00:56]} exd5 {[%emt 0:00:30]} 13. cxd5 {[%emt 0:00:28]} Re8 {[%emt 0:01:03]} 14. Nd3 {[%emt 0:01:29]} Bb7 {[%emt 0:06:23]} 15. Nf2 {[%emt 0:01:50]} Rab8 {[%emt 0:04:57]} 16. f4 {[%emt 0:01:26]} Nxe4 {[%emt 0:02:10]} 17. Ncxe4 {[%emt 0:07:11]} f5 {[%emt 0:00:16]} 18. Qd2 {[%emt 0:28:04]} fxe4 {[%emt 0:03:40]} 19. Bg4 {[%emt 0:00:27]} Nf6 {[%emt 0:09:43]} 20. Be2 {[%emt 0:04:46]} Kh8 {[%emt 0:17:00]} 21. Bc4 {[%emt 0:02:28]} Bc8 {[%emt 0:04:20]} 22. Qe2 {[%emt 0:04:18]} Qb7 {[%emt 0:05:38]} 23. Rfd1 {[%emt 0:03:55]} b5 {[%emt 0:01:19]} 24. axb5 {[%emt 0:00:11]} axb5 {[%emt 0:00:04]} 25. Bb3 {[%emt 0:01:31]} h5 {[%emt 0:01:37]} 26. h3 {[%emt 0:02:07]} Qd7 {[%emt 0:00:42]} 27. Ra5 {[%emt 0:13:03]} Qf5 {[%emt 0:02:39]} 28. Ra7 {[%emt 0:05:00]} h4 {[%emt 0:03:31]} 29. Bd2 {[%emt 0:07:26]} Qh5 {[%emt 0:04:41]} 30. Qxh5+ {[%emt 0:01:58]} Nxh5 {[%emt 0:00:01]} 31. Bc3 {[%emt 0:00:44]} Bxc3 {[%emt 0:00:23]} 32. bxc3 {[%emt 0:00:01]} Nxf4 {[%emt 0:00:24]} 33. Re1 {[%emt 0:00:59]} e3 {[%emt 0:02:05]} 34. Ng4 {[%emt 0:00:51]} Bxg4 {[%emt 0:00:25]} 35. hxg4 {[%emt 0:00:02]} Nd3 {[%emt 0:00:48]} 0-1